fUST/lending_fUST_20240516
["ID","MTS","AMOUNT","RATE_DAILY","PERIOD"]
[327085965,1715801450768,-759.28492195,0.00019178,2]
[327085966,1715801450778,-759.28492195,0.00019178,2]
[327085967,1715801450788,-759.28492195,0.00019178,2]
[327085968,1715801450798,-759.28492195,0.00019178,2]
[327085969,1715801450807,-759.28492195,0.00019178,2]
[327085970,1715801450816,-759.28492195,0.00019178,2]
[327085971,1715801450825,-759.28492195,0.00019178,2]
[327085972,1715801450835,-759.28492195,0.00019178,2]
[327085973,1715801450844,-759.28492195,0.00019178,2]
[327085974,1715801450854,-759.28492195,0.00019178,2]
[327085975,1715801450863,-759.28492195,0.00019178,2]
[327085976,1715801450873,-759.28492195,0.00019178,2]
[327085977,1715801450882,-759.28492195,0.00019178,2]
[327085978,1715801450892,-759.28492195,0.00019178,2]
[327085979,1715801450901,-436.11987462,0.00019178,2]
[327085980,1715801450911,-514.05651526,0.00019178,2]
[327085981,1715801450921,-287.42366776,0.00019178,2]
[327085982,1715801450930,-451.76664373,0.00019178,2]
[327085983,1715801450939,-181.21839487,0.00019178,2]
[327085984,1715801450949,-319.85942823,0.00019178,2]
[327085985,1715801450964,-329.37370966,0.00019178,2]
[327085986,1715801471579,500.0,0.0001801,2]
[327085987,1715801523583,1495.65941735,9.999e-05,2]
[327085988,1715801653290,281.31656163,9.999e-05,2]
[327085989,1715801656189,238.64916144,9.999e-05,2]
[327085990,1715801656320,16424.02023505,9.999e-05,2]
[327085991,1715801662748,585.03376366,9.999e-05,2]
[327085992,1715801703154,1682.85215345,0.00015,2]
[327085993,1715801805393,3500.32405325,0.00017843,2]
[327085994,1715801839115,1417.70073814,9.999e-05,2]
[327085995,1715801861389,1417.70073814,0.00017939,2]
[327085996,1715801887914,150.81901718,0.0002383,120]
[327085997,1715801927277,3520.71822732,0.00018001,2]
[327085998,1715802153328,9556.33105858,0.0001801,2]
[327086000,1715802171883,3552.44249808,0.00017718,2]
[327086001,1715802172754,3552.44249808,0.00017974,2]
[327086002,1715802260975,19486.4682117,0.00017535,2]
[327086003,1715802491552,150.83408251,0.00023948,120]
[327086053,1715802632289,-9556.33105858,0.00018015,2]
[327086056,1715802632298,-1884.51859878,0.00018016,2]
[327086058,1715802632308,-452.3303047,0.00018121,2]
[327086059,1715802632317,-478.82198085,0.00018122,2]
[327086061,1715802632326,-592.11266606,0.00018123,2]
[327086063,1715802632335,-23111.31740424,0.00018123,2]
[327086065,1715802632347,-461.7881077,0.00018123,2]
[327086067,1715802632358,-918.66,0.00018123,2]
[327086087,1715802638208,-1252.50584317,0.00018123,2]
[327086108,1715802641530,-78525.52503317,0.00018123,2]
[327086109,1715802641539,-281.77738546,0.00018124,2]
[327086110,1715802641549,-423.46009328,0.00018124,2]
[327086111,1715802641559,-245.33734162,0.00018124,2]
[327086112,1715802641568,-2631.62253503,0.00018124,2]
[327086113,1715802641577,-156.27828989,0.00018124,2]
[327086114,1715802641586,-309.62852309,0.00018124,2]
[327086115,1715802641595,-185.72386911,0.00018124,2]
[327086116,1715802641604,-451.99435923,0.00018124,2]
[327086117,1715802641613,-599.72068262,0.00018124,2]
[327086118,1715802641622,-277.62066028,0.00018124,2]
[327086119,1715802641631,-486.98632187,0.00018124,2]
[327086120,1715802641640,-320.15308883,0.00018124,2]
[327086121,1715802641650,-839.11960495,0.00018125,2]
[327086122,1715802641659,-1101.70647313,0.00018125,2]
[327086123,1715802641668,-241.86478856,0.00018125,2]
[327086124,1715802641678,-286.3624082,0.00018125,2]
[327086125,1715802641687,-3552.44249808,0.00018221,2]
[327086126,1715802641696,-298.79004079,0.00018286,2]
[327086127,1715802641705,-3552.44249808,0.00018429,2]
[327086128,1715802641715,-298.79004079,0.0001869,2]
[327086129,1715802641724,-153.0,0.000187,2]
[327086130,1715802641733,-153.0,0.000187,2]
[327086131,1715802641742,-153.0,0.00018741,2]
[327086132,1715802641752,-153.0,0.000188,2]
[327086133,1715802641761,-153.0,0.000188,2]
[327086134,1715802641771,-153.0,0.000188,2]
[327086135,1715802641780,-3552.44249808,0.00018851,2]
[327086136,1715802641789,-2836.43836002,0.000189,2]
[327086137,1715802641800,-300.0,0.00018917,2]
[327086138,1715802641809,-300.0,0.00018923,2]
[327086139,1715802641819,-711.75797253,0.00018959,2]
[327086140,1715802641830,-3552.44249808,0.0001896,2]
[327086141,1715802641841,-150.0,0.00018971,2]
[327086142,1715802641851,-153.0,0.00019041,2]
[327086143,1715802641865,-8044.03835075,0.00019078,2]
[327086144,1715802641875,-416.7728428,0.00019088,2]
[327086145,1715802641885,-300.0,0.00019091,2]
[327086146,1715802641895,-619.89550732,0.00019093,2]
[327086147,1715802641904,-298.79004079,0.00019093,2]
[327086148,1715802641913,-1000.0,0.00019094,2]
[327086149,1715802641922,-153.0,0.000191,2]
[327086150,1715802641934,-184.42817812,0.000191,2]
[327086151,1715802641943,-291.43038969,0.0001913,2]
[327086152,1715802641953,-300.0,0.00019162,2]
[327086153,1715802641964,-409.49495677,0.00019174,2]
[327086154,1715802641973,-2594.90254816,0.00019175,2]
[327086155,1715802641982,-9394.10786134,0.00019176,2]
[327086156,1715802641991,-2660.27406576,0.00019176,2]
[327086157,1715802642001,-232.7984235,0.00019178,2]
[327086158,1715802642011,-500.0,0.00019178,2]
[327086159,1715802642020,-200.0,0.00019178,2]
[327086160,1715802642032,-500.0,0.00019178,2]
[327086161,1715802642043,-500.0,0.00019178,2]
[327086162,1715802642052,-500.0,0.00019178,2]
[327086163,1715802642062,-500.0,0.00019178,2]
[327086164,1715802642071,-500.0,0.00019178,2]
[327086165,1715802642081,-500.0,0.00019178,2]
[327086166,1715802642091,-500.0,0.00019178,2]
[327086167,1715802642102,-500.0,0.00019178,2]
[327086168,1715802642111,-500.0,0.00019178,2]
[327086169,1715802642121,-500.0,0.00019178,2]
[327086170,1715802642131,-500.0,0.00019178,2]
[327086171,1715802642145,-500.0,0.00019178,2]
[327086172,1715802642155,-500.0,0.00019178,2]
[327086173,1715802642164,-500.0,0.00019178,2]
[327086174,1715802642174,-500.0,0.00019178,2]
[327086175,1715802642184,-500.0,0.00019178,2]
[327086176,1715802642193,-500.0,0.00019178,2]
[327086177,1715802642202,-500.0,0.00019178,2]
[327086178,1715802642211,-500.0,0.00019178,2]
[327086179,1715802642220,-500.0,0.00019178,2]
[327086180,1715802642229,-500.0,0.00019178,2]
[327086181,1715802642238,-500.0,0.00019178,2]
[327086182,1715802642248,-500.0,0.00019178,2]
[327086183,1715802642258,-500.0,0.00019178,2]
[327086184,1715802642267,-500.0,0.00019178,2]
[327086185,1715802642280,-500.0,0.00019178,2]
[327086186,1715802642288,-500.0,0.00019178,2]
[327086187,1715802642298,-500.0,0.00019178,2]
[327086188,1715802642307,-500.0,0.00019178,2]
[327086189,1715802642316,-500.0,0.00019178,2]
[327086190,1715802642325,-500.0,0.00019178,2]
[327086191,1715802642335,-500.0,0.00019178,2]
[327086192,1715802642344,-500.0,0.00019178,2]
[327086193,1715802642353,-500.0,0.00019178,2]
[327086194,1715802642363,-500.0,0.00019178,2]
[327086195,1715802642372,-500.0,0.00019178,2]
[327086196,1715802642381,-500.0,0.00019178,2]
[327086197,1715802642391,-500.0,0.00019178,2]
[327086198,1715802642400,-500.0,0.00019178,2]
[327086199,1715802642410,-500.0,0.00019178,2]
[327086200,1715802642419,-500.0,0.00019178,2]
[327086201,1715802642428,-500.0,0.00019178,2]
[327086202,1715802642437,-500.0,0.00019178,2]
[327086203,1715802642446,-500.0,0.00019178,2]
[327086204,1715802642456,-500.0,0.00019178,2]
[327086205,1715802642465,-500.0,0.00019178,2]
[327086206,1715802642475,-500.0,0.00019178,2]
[327086207,1715802642484,-500.0,0.00019178,2]
[327086208,1715802642493,-579.01931984,0.00019178,2]
[327086209,1715802642502,-500.0,0.00019178,2]
[327086210,1715802642511,-500.0,0.00019178,2]
[327086211,1715802642520,-500.0,0.00019178,2]
[327086212,1715802642531,-500.0,0.00019178,2]
[327086213,1715802642540,-500.0,0.00019178,2]
[327086214,1715802642549,-500.0,0.00019178,2]
[327086216,1715802642559,-500.0,0.00019178,2]
[327086217,1715802642569,-500.0,0.00019178,2]
[327086218,1715802642578,-500.0,0.00019178,2]
[327086219,1715802642587,-500.0,0.00019178,2]
[327086220,1715802642596,-500.0,0.00019178,2]
[327086221,1715802642605,-500.0,0.00019178,2]
[327086222,1715802642614,-500.0,0.00019178,2]
[327086223,1715802642624,-500.0,0.00019178,2]
[327086225,1715802642633,-182.087703,0.00019178,2]
[327086226,1715802642642,-166.295965,0.00019178,2]
[327086227,1715802642651,-313.8155609,0.00019274,2]
[327086228,1715802642660,-298.79004079,0.00019497,2]
[327086230,1715802642669,-3552.44249808,0.00019644,2]
[327086231,1715802642678,-622.92966561,0.00019767,2]
[327086233,1715802642687,-367.31417326,0.00019799,2]
[327086235,1715802642697,-3552.44249808,0.00019803,2]
[327086236,1715802642706,-150.0,0.0001989,2]
[327086238,1715802642716,-298.79004079,0.000199,2]
[327086239,1715802642725,-705.39484222,0.00019994,2]
[327086241,1715802642734,-225.84249231,0.00019994,2]
[327086243,1715802642743,-346.08760828,0.00019994,2]
[327086244,1715802642752,-1335.95930194,0.00019994,2]
[327086246,1715802642761,-155.58184134,0.00019994,2]
[327086248,1715802642770,-155.30677341,0.00019994,2]
[327086249,1715802642781,-830.86021617,0.00019994,2]
[327086251,1715802642791,-296.81185104,0.00019996,2]
[327086253,1715802642800,-2399.32123468,0.00019996,2]
[327086255,1715802642809,-167.16942203,0.00019997,2]
[327086258,1715802642819,-162.83388905,0.00019997,2]
[327086262,1715802642829,-280.73288761,0.00019997,7]
[327086266,1715802642838,-155.2769574,0.00019997,2]
[327086269,1715802642847,-155.20641764,0.00019997,2]
[327086272,1715802642858,-171.77689685,0.00019997,2]
[327086275,1715802642870,-155.20227214,0.00019997,2]
[327086285,1715802642993,-155.17992662,0.00019997,2]
[327086287,1715802643004,-311.84730404,0.00019997,2]
[327086289,1715802643014,-155.30132281,0.00019997,2]
[327086290,1715802643024,-284.36708911,0.00019997,2]
[327086291,1715802643034,-412.67758215,0.00019997,2]
[327086292,1715802643044,-160.85291017,0.00019997,2]
[327086293,1715802643054,-377.30118738,0.00019997,2]
[327086294,1715802643064,-178.5182123,0.00019997,2]
[327086295,1715802643074,-156.39130606,0.00019998,2]
[327086296,1715802643083,-871.49269714,0.00019998,2]
[327086297,1715802643093,-13978.13146362,0.0002,3]
[327086298,1715802643102,-7918.95885934,0.0002,2]
[327086299,1715802643111,-611.6701142,0.0002,2]
[327086300,1715802643120,-12703.0,0.0002,2]
[327086301,1715802643130,-400.0,0.0002,2]
[327086302,1715802643139,-526.61447945,0.0002,4]
[327086303,1715802643147,-151.0,0.0002,2]
[327086304,1715802643156,-151.0,0.0002,2]
[327086305,1715802643165,-151.0,0.0002,2]
[327086306,1715802643174,-151.0,0.0002,2]
[327086307,1715802643183,-151.0,0.0002,2]
[327086308,1715802643192,-151.0,0.0002,2]
[327086309,1715802643202,-151.0,0.0002,2]
[327086310,1715802643211,-151.0,0.0002,2]
[327086311,1715802643220,-151.537125,0.0002,2]
[327086312,1715802643230,-151.0,0.0002,2]
[327086313,1715802643239,-151.707685,0.0002,2]
[327086314,1715802643248,-280.554154,0.0002,2]
[327086315,1715802643257,-151.0,0.0002,2]
[327086316,1715802643266,-151.0,0.0002,2]
[327086317,1715802643275,-151.0,0.0002,2]
[327086318,1715802643285,-151.0,0.0002,2]
[327086319,1715802643294,-157.554929,0.0002,2]
[327086320,1715802643303,-151.0,0.0002,2]
[327086321,1715802643312,-151.0,0.0002,2]
[327086322,1715802643321,-151.0,0.0002,2]
[327086323,1715802643331,-198.576822,0.0002,2]
[327086324,1715802643340,-151.0,0.0002,2]
[327086325,1715802643349,-151.0,0.0002,2]
[327086326,1715802643358,-151.0,0.0002,2]
[327086327,1715802643368,-151.0,0.0002,2]
[327086328,1715802643377,-151.0,0.0002,2]
[327086329,1715802643386,-471.704575,0.0002,2]
[327086330,1715802643396,-471.704575,0.0002,2]
[327086331,1715802643405,-471.704575,0.0002,2]
[327086332,1715802643414,-471.704575,0.0002,2]
[327086333,1715802643425,-471.704575,0.0002,2]
[327086334,1715802643434,-471.704575,0.0002,2]
[327086335,1715802643443,-471.704575,0.0002,2]
[327086336,1715802643452,-471.704575,0.0002,2]
[327086337,1715802643462,-471.704575,0.0002,2]
[327086338,1715802643471,-213.905197,0.0002,2]
[327086339,1715802643481,-471.704575,0.0002,2]
[327086340,1715802643490,-213.905197,0.0002,2]
[327086341,1715802643501,-213.905197,0.0002,2]
[327086342,1715802643511,-213.905197,0.0002,2]
[327086343,1715802643520,-213.905197,0.0002,2]
[327086344,1715802643533,-213.905197,0.0002,2]
[327086345,1715802643542,-213.905197,0.0002,2]
[327086346,1715802643551,-213.905197,0.0002,2]
[327086347,1715802643560,-213.905197,0.0002,2]
[327086348,1715802643569,-213.905197,0.0002,2]
[327086349,1715802643578,-38126.10130385,0.0002,2]
[327086350,1715802643587,-159.59252,0.0002,2]
[327086351,1715802643597,-159.59252,0.0002,2]
[327086352,1715802643605,-159.59252,0.0002,2]
[327086353,1715802643615,-159.59252,0.0002,2]
[327086354,1715802643624,-159.59252,0.0002,2]
[327086355,1715802643633,-159.59252,0.0002,2]
[327086356,1715802643644,-159.59252,0.0002,2]
[327086357,1715802643654,-159.59252,0.0002,2]
[327086358,1715802643665,-159.59252,0.0002,2]
[327086359,1715802643676,-159.59252,0.0002,2]
[327086360,1715802643685,-151.0,0.0002,2]
[327086361,1715802643695,-151.0,0.0002,2]
[327086362,1715802643704,-151.0,0.0002,2]
[327086363,1715802643713,-1304.169155,0.0002,2]
[327086364,1715802643722,-151.0,0.0002,2]
[327086365,1715802643732,-151.0,0.0002,2]
[327086366,1715802643742,-151.0,0.0002,2]
[327086367,1715802643752,-1304.169155,0.0002,2]
[327086368,1715802643761,-1304.169155,0.0002,2]
[327086369,1715802643770,-1304.169155,0.0002,2]
[327086370,1715802643784,-204.445716,0.0002,2]
[327086371,1715802643793,-1304.169155,0.0002,2]
[327086372,1715802643802,-1304.169155,0.0002,2]
[327086373,1715802643811,-1304.169155,0.0002,2]
[327086374,1715802643819,-1304.169155,0.0002,2]
[327086375,1715802643828,-1304.169155,0.0002,2]
[327086376,1715802643838,-1304.169155,0.0002,2]
[327086377,1715802643848,-347.07847,0.0002,2]
[327086378,1715802643858,-347.07847,0.0002,2]
[327086379,1715802643871,-347.07847,0.0002,2]
[327086380,1715802643880,-347.07847,0.0002,2]
[327086381,1715802643890,-391.883337,0.0002,2]
[327086382,1715802643900,-347.07847,0.0002,2]
[327086383,1715802643909,-391.883337,0.0002,2]
[327086384,1715802643918,-347.07847,0.0002,2]
[327086385,1715802643928,-391.883337,0.0002,2]
[327086386,1715802643938,-391.883337,0.0002,2]
[327086387,1715802643948,-391.883337,0.0002,2]
[327086388,1715802643958,-347.07847,0.0002,2]
[327086389,1715802643967,-347.07847,0.0002,2]
[327086390,1715802643976,-391.883337,0.0002,2]
[327086391,1715802643986,-391.883337,0.0002,2]
[327086392,1715802643996,-347.07847,0.0002,2]
[327086393,1715802644006,-347.07847,0.0002,2]
[327086394,1715802644015,-391.883337,0.0002,2]
[327086395,1715802644028,-347.07847,0.0002,2]
[327086396,1715802644038,-391.883337,0.0002,2]
[327086397,1715802644047,-347.07847,0.0002,2]
[327086398,1715802644057,-391.883337,0.0002,2]
[327086399,1715802644066,-151.0,0.0002,2]
[327086400,1715802644076,-151.0,0.0002,2]
[327086401,1715802644086,-151.0,0.0002,2]
[327086402,1715802644096,-151.0,0.0002,2]
[327086403,1715802644105,-151.0,0.0002,2]
[327086404,1715802644115,-151.0,0.0002,2]
[327086405,1715802644124,-151.0,0.0002,2]
[327086406,1715802644134,-151.0,0.0002,2]
[327086407,1715802644143,-151.0,0.0002,2]
[327086408,1715802644152,-151.0,0.0002,2]
[327086409,1715802644162,-151.0,0.0002,2]
[327086410,1715802644171,-151.0,0.0002,2]
[327086411,1715802644181,-152.649571,0.0002,2]
[327086412,1715802644191,-363.59216,0.0002,2]
[327086413,1715802644200,-363.59216,0.0002,2]
[327086414,1715802644209,-363.59216,0.0002,2]
[327086415,1715802644218,-363.59216,0.0002,2]
[327086416,1715802644228,-363.59216,0.0002,2]
[327086417,1715802644237,-363.59216,0.0002,2]
[327086418,1715802644247,-363.59216,0.0002,2]
[327086419,1715802644256,-363.59216,0.0002,2]
[327086420,1715802644266,-363.59216,0.0002,2]
[327086421,1715802644278,-363.59216,0.0002,2]
[327086422,1715802644287,-200.0,0.0002,2]
[327086424,1715802644297,-151.0,0.0002,2]
[327086426,1715802644306,-151.0,0.0002,2]
[327086427,1715802644316,-151.0,0.0002,2]
[327086428,1715802644325,-151.0,0.0002,2]
[327086429,1715802644334,-151.0,0.0002,2]
[327086430,1715802644343,-151.0,0.0002,2]
[327086431,1715802644352,-151.0,0.0002,2]
[327086432,1715802644361,-151.0,0.0002,2]
[327086433,1715802644370,-151.0,0.0002,2]
[327086434,1715802644379,-151.0,0.0002,2]
[327086435,1715802644388,-1602.676196,0.0002,2]
[327086436,1715802644397,-1602.676196,0.0002,2]
[327086437,1715802644406,-1602.676196,0.0002,2]
[327086438,1715802644415,-1602.676196,0.0002,2]
[327086439,1715802644425,-1602.676196,0.0002,2]
[327086442,1715802644434,-151.0,0.0002,2]
[327086444,1715802644443,-151.0,0.0002,2]
[327086446,1715802644452,-151.0,0.0002,2]
[327086448,1715802644461,-1602.676196,0.0002,2]
[327086450,1715802644470,-288.774812,0.0002,2]
[327086451,1715802644480,-1602.676196,0.0002,2]
[327086453,1715802644489,-1602.676196,0.0002,2]
[327086455,1715802644499,-1602.676196,0.0002,2]
[327086457,1715802644508,-1602.676196,0.0002,2]
[327086459,1715802644517,-939.408046,0.0002,2]
[327086460,1715802644528,-939.408046,0.0002,2]
[327086461,1715802644537,-939.408046,0.0002,2]
[327086462,1715802644546,-939.408046,0.0002,2]
[327086463,1715802644555,-939.408046,0.0002,2]
[327086464,1715802644564,-939.408046,0.0002,2]
[327086465,1715802644574,-939.408046,0.0002,2]
[327086466,1715802644583,-939.408046,0.0002,2]
[327086467,1715802644593,-939.408046,0.0002,2]
[327086468,1715802644602,-939.408046,0.0002,2]
[327086469,1715802644612,-167.917639,0.0002,2]
[327086470,1715802644621,-167.917639,0.0002,2]
[327086471,1715802644631,-167.917639,0.0002,2]
[327086472,1715802644640,-167.917639,0.0002,2]
[327086473,1715802644649,-167.917639,0.0002,2]
[327086474,1715802644658,-167.917639,0.0002,2]
[327086475,1715802644667,-167.917639,0.0002,2]
[327086476,1715802644677,-167.917639,0.0002,2]
[327086477,1715802644685,-167.917639,0.0002,2]
[327086478,1715802644695,-167.917639,0.0002,2]
[327086479,1715802644704,-151.0,0.0002,2]
[327086480,1715802644713,-151.0,0.0002,2]
[327086481,1715802644823,-151.0,0.0002,2]
[327086482,1715802644833,-151.0,0.0002,2]
[327086483,1715802644842,-151.0,0.0002,2]
[327086484,1715802644852,-291.022988,0.0002,2]
[327086485,1715802644865,-213.762212,0.0002,2]
[327086486,1715802644875,-213.762212,0.0002,2]
[327086487,1715802644884,-213.762212,0.0002,2]
[327086488,1715802644893,-3341.379673,0.0002,2]
[327086489,1715802644902,-213.762212,0.0002,2]
[327086490,1715802644911,-3341.379673,0.0002,2]
[327086491,1715802644921,-213.762212,0.0002,2]
[327086492,1715802644930,-3341.379673,0.0002,2]
[327086493,1715802644941,-3341.379673,0.0002,2]
[327086494,1715802644950,-3078.81578876,0.0002,2]
[327086495,1715802645292,-262.56388424,0.0002,2]
[327086496,1715802645302,-151.0,0.0002,2]
[327086497,1715802645311,-151.0,0.0002,2]
[327086498,1715802645321,-151.0,0.0002,2]
[327086499,1715802645330,-213.762212,0.0002,2]
[327086500,1715802645339,-151.0,0.0002,2]
[327086501,1715802645348,-3341.379673,0.0002,2]
[327086502,1715802645358,-213.762212,0.0002,2]
[327086503,1715802645367,-3341.379673,0.0002,2]
[327086504,1715802645376,-151.0,0.0002,2]
[327086505,1715802645386,-213.762212,0.0002,2]
[327086506,1715802645395,-151.0,0.0002,2]
[327086507,1715802645404,-2040.4261335,0.0002,2]
[327086508,1715802645416,-1300.9535395,0.0002,2]
[327086509,1715802645426,-213.762212,0.0002,2]
[327086510,1715802645435,-2597.79432242,0.0002,2]
[327086511,1715802645447,-743.58535058,0.0002,2]
[327086512,1715802645457,-213.762212,0.0002,2]
[327086513,1715802645466,-3341.379673,0.0002,2]
[327086514,1715802645475,-151.0,0.0002,2]
[327086515,1715802645484,-151.0,0.0002,2]
[327086516,1715802645494,-151.0,0.0002,2]
[327086517,1715802645503,-151.0,0.0002,2]
[327086518,1715802645512,-151.0,0.0002,2]
[327086519,1715802645521,-159.54106,0.0002,2]
[327086520,1715802645531,-151.0,0.0002,2]
[327086521,1715802645540,-151.0,0.0002,2]
[327086522,1715802645550,-151.0,0.0002,2]
[327086523,1715802645559,-151.0,0.0002,2]
[327086524,1715802645568,-151.5885,0.0002,2]
[327086525,1715802645577,-151.0,0.0002,2]
[327086526,1715802645586,-151.0,0.0002,2]
[327086527,1715802645596,-151.0,0.0002,2]
[327086528,1715802645605,-151.0,0.0002,2]
[327086529,1715802645615,-151.0,0.0002,2]
[327086531,1715802645624,-151.0,0.0002,2]
[327086533,1715802645633,-213.552262,0.0002,2]
[327086535,1715802645642,-151.0,0.0002,2]
[327086536,1715802645651,-151.0,0.0002,2]
[327086537,1715802645660,-151.0,0.0002,2]
[327086538,1715802645670,-151.0,0.0002,2]
[327086539,1715802645679,-151.0,0.0002,2]
[327086540,1715802645687,-151.0,0.0002,2]
[327086541,1715802645697,-151.0,0.0002,2]
[327086542,1715802645706,-151.0,0.0002,2]
[327086543,1715802645715,-151.0,0.0002,2]
[327086544,1715802645724,-202.22318,0.0002,2]
[327086545,1715802645733,-321.648957,0.0002,2]
[327086546,1715802645742,-321.648957,0.0002,2]
[327086547,1715802645752,-321.648957,0.0002,2]
[327086549,1715802645761,-321.648957,0.0002,2]
[327086551,1715802645770,-321.648957,0.0002,2]
[327086552,1715802645780,-321.648957,0.0002,2]
[327086553,1715802645789,-321.648957,0.0002,2]
[327086554,1715802645798,-321.648957,0.0002,2]
[327086555,1715802645808,-321.648957,0.0002,2]
[327086556,1715802645817,-321.648957,0.0002,2]
[327086557,1715802645826,-321.648957,0.0002,2]
[327086558,1715802645835,-321.648957,0.0002,2]
[327086559,1715802645844,-152.253036,0.0002,2]
[327086560,1715802645854,-1533.034298,0.0002,2]
[327086561,1715802645867,-1533.034298,0.0002,2]
[327086562,1715802645876,-1533.034298,0.0002,2]
[327086563,1715802645885,-1533.034298,0.0002,2]
[327086564,1715802645895,-1533.034298,0.0002,2]
[327086565,1715802645906,-1533.034298,0.0002,2]
[327086566,1715802645915,-1533.034298,0.0002,2]
[327086567,1715802645924,-1533.034298,0.0002,2]
[327086568,1715802645933,-1533.034298,0.0002,2]
[327086569,1715802645944,-1533.034298,0.0002,2]
[327086570,1715802645954,-1533.034298,0.0002,2]
[327086572,1715802645963,-1533.034298,0.0002,2]
[327086573,1715802645972,-5455.663328,0.0002,2]
[327086574,1715802645981,-5455.663328,0.0002,2]
[327086576,1715802645990,-1367.15856158,0.0002,2]
[327086585,1715802646962,-154.84515485,0.00018122,2]
[327086586,1715802646977,-306.00939518,0.0002,2]
[327086587,1715802646999,-331.85695645,0.0002,2]
[327086588,1715802647017,-594.49542489,0.0002,2]
[327086594,1715802719384,150.84915085,0.0002426,120]
[327086604,1715802949976,155.52,0.00010959,2]
[327086605,1715802953442,845.45985249,0.00017972,2]
[327086606,1715802960512,777.6,0.00010959,2]
[327086607,1715802971074,186.62,0.00010959,2]
[327086612,1715803080420,150.81901718,0.00024209,120]
[327086613,1715803110875,184.71430303,0.00017962,2]
[327086615,1715803147137,251.6188645,0.00017063,2]
[327086621,1715803233796,739.77737099,0.00017954,2]
[327086622,1715803261999,4028.2686444,0.00017256,2]
[327086623,1715803388783,150.81901718,0.00024335,120]
[327086625,1715803442807,291.361056,0.00017778,2]
[327086628,1715803751823,150.83408251,0.00024456,120]
[327086632,1715803800335,647.30519959,0.00017923,2]
[327086633,1715803825626,6605.0663278,0.00017792,2]
[327086685,1715803832294,-5424.24111078,0.00018021,2]
[327086690,1715803832354,-304.37246813,0.00018021,2]
[327086693,1715803832366,-3827.71747967,0.00018021,2]
[327086694,1715803832376,-1042.40156265,0.00018021,2]
[327086697,1715803832387,-842.11703613,0.00018021,2]
[327086699,1715803832396,-340.49780786,0.00018022,2]
[327086882,1715803838360,-6164.6021993,0.0001802,2]
[327086883,1715803838372,-2290.37869544,0.0001802,2]
[327086884,1715803838421,-468.12640148,0.0001802,2]
[327086901,1715803841415,-471.00056512,0.0001802,2]
[327086902,1715803841425,-2337.00387528,0.00018022,2]
[327086903,1715803841435,-184.71430301,0.00018743,2]
[327086904,1715803841445,-522.32566307,0.00018843,2]
[327086905,1715803841455,-2126.00224249,0.000189,2]
[327086906,1715803841465,-647.30519955,0.00019066,2]
[327086907,1715803841474,-9094.9558943,0.00019177,2]
[327086908,1715803841486,-464.78866184,0.00019177,2]
[327086909,1715803841508,-599.80013693,0.00019177,2]
[327086960,1715803875790,3893.62134309,9.999e-05,2]
[327086961,1715803878166,230.6679127,9.999e-05,2]
[327086962,1715803879210,1919.50709615,9.999e-05,2]
[327086963,1715803897859,189.80933307,0.00018,2]